fUSD/lending_fUSD_20240527
["ID","MTS","AMOUNT","RATE_DAILY","PERIOD"]
[328021041,1716773558408,-518.47,0.00032328,4]
[328021042,1716773558419,-820.24,0.00032328,4]
[328021043,1716773558429,-500.0,0.00032328,4]
[328021044,1716773558439,-813.92,0.00032328,4]
[328021045,1716773558449,-532.57,0.00032328,4]
[328021046,1716773558459,-500.0,0.00032328,4]
[328021047,1716773558669,-1037.2,0.00032328,4]
[328021048,1716773558679,-1002.02,0.00032328,4]
[328021049,1716773558689,-1135.33,0.00032328,4]
[328021050,1716773558699,-696.41,0.00032328,4]
[328021051,1716773558708,-526.63,0.00032328,4]
[328021052,1716773558718,-659.81,0.00032328,4]
[328021053,1716773558727,-566.26,0.00032328,4]
[328021054,1716773558738,-724.95,0.00032328,4]
[328021055,1716773558747,-715.24,0.00032328,4]
[328021056,1716773558757,-500.0,0.00032328,4]
[328021057,1716773558767,-537.11,0.00032328,4]
[328021058,1716773558776,-1115.92,0.00032328,4]
[328021059,1716773558786,-514.34,0.00032328,4]
[328021060,1716773558796,-500.0,0.00032328,4]
[328021061,1716773558808,-500.0,0.00032328,4]
[328021062,1716773558819,-500.0,0.00032328,4]
[328021063,1716773558828,-500.0,0.00032328,4]
[328021064,1716773558838,-1161.05,0.00032328,4]
[328021065,1716773558851,-383.52,0.00032328,4]
[328021066,1716773558860,-657.79,0.00032328,4]
[328021067,1716773558870,-481.5,0.00032328,4]
[328021068,1716773558879,-513.43,0.00032328,4]
[328021069,1716773558890,-563.52,0.00032328,4]
[328021070,1716773558899,-553.3,0.00032328,4]
[328021071,1716773558910,-500.0,0.00032328,4]
[328021072,1716773558920,-590.37,0.00032328,4]
[328021073,1716773558931,-500.0,0.00032328,4]
[328021074,1716773558942,-500.0,0.00032328,4]
[328021075,1716773558951,-500.0,0.00032328,4]
[328021076,1716773558961,-677.81,0.00032328,4]
[328021077,1716773558971,-640.38,0.00032328,4]
[328021078,1716773558980,-500.0,0.00032328,4]
[328021079,1716773558990,-689.4,0.00032328,4]
[328021080,1716773559000,-566.57,0.00032328,4]
[328021081,1716773559011,-1225.47,0.00032328,4]
[328021082,1716773559021,-652.09,0.00032328,4]
[328021083,1716773559032,-921.84,0.00032328,4]
[328021084,1716773559042,-796.9,0.00032328,4]
[328021085,1716773559052,-531.92,0.00032328,4]
[328021086,1716773559063,-500.0,0.00032328,4]
[328021087,1716773559072,-911.01,0.00032328,4]
[328021088,1716773559082,-641.37,0.00032328,4]
[328021089,1716773559092,-1333.61,0.00032328,4]
[328021090,1716773559102,-486.84,0.00032328,4]
[328021091,1716773559111,-482.96379643,0.00032328,4]
[328021092,1716773559122,-514.48,0.00032328,4]
[328021093,1716773559132,-1275.39,0.00032328,4]
[328021094,1716773559142,-1100.98,0.00032328,4]
[328021095,1716773559152,-500.0,0.00032328,4]
[328021096,1716773559162,-690.87,0.00032328,4]
[328021097,1716773559172,-1641.89,0.00032328,4]
[328021098,1716773559183,-243.5,0.00032328,4]
[328021099,1716773559193,-500.0,0.00032328,4]
[328021100,1716773559203,-500.0,0.00032328,4]
[328021101,1716773559213,-500.0,0.00032328,4]
[328021102,1716773559223,-500.0,0.00032328,4]
[328021103,1716773559233,-500.0,0.00032328,4]
[328021104,1716773559243,-239.12,0.00032328,4]
[328021105,1716773559253,-935.12,0.00032328,4]
[328021106,1716773559263,-500.0,0.00032328,4]
[328021107,1716773559272,-677.22,0.00032328,4]
[328021108,1716773559282,-1013.07,0.00032328,4]
[328021109,1716773559292,-500.0,0.00032328,4]
[328021110,1716773559301,-552.18,0.00032328,4]
[328021111,1716773559311,-284.26,0.00032328,4]
[328021112,1716773559321,-861.85,0.00032328,4]
[328021113,1716773559330,-858.84,0.00032328,4]
[328021114,1716773559340,-500.0,0.00032328,4]
[328021115,1716773559350,-500.0,0.00032328,4]
[328021116,1716773559360,-811.31,0.00032328,4]
[328021117,1716773559371,-549.95,0.00032328,4]
[328021118,1716773559381,-620.92,0.00032328,4]
[328021119,1716773559390,-742.45,0.00032328,4]
[328021120,1716773559400,-500.0,0.00032328,4]
[328021121,1716773559410,-170.12,0.00032328,4]
[328021122,1716773559421,-611.76,0.00032328,4]
[328021123,1716773559431,-1162.24,0.00032328,4]
[328021124,1716773559442,-803.05,0.00032328,4]
[328021125,1716773559452,-722.78,0.00032328,4]
[328021126,1716773559463,-500.0,0.00032328,4]
[328021127,1716773559473,-958.44,0.00032328,4]
[328021128,1716773559483,-665.19,0.00032328,4]
[328021129,1716773559494,-500.0,0.00032328,4]
[328021130,1716773559503,-742.73,0.00032328,4]
[328021131,1716773559513,-1148.79,0.00032328,4]
[328021132,1716773559523,-684.31,0.00032328,4]
[328021133,1716773559533,-868.94,0.00032328,4]
[328021134,1716773559542,-500.0,0.00032328,4]
[328021135,1716773559551,-500.0,0.00032328,4]
[328021136,1716773559561,-555.76,0.00032328,4]
[328021137,1716773559571,-1021.87,0.00032328,4]
[328021138,1716773559581,-771.51,0.00032328,4]
[328021139,1716773559590,-504.16,0.00032328,4]
[328021140,1716773559600,-1127.03,0.00032328,4]
[328021141,1716773559610,-500.0,0.00032328,4]
[328021142,1716773559619,-568.94,0.00032328,4]
[328021143,1716773559629,-792.94,0.00032328,4]
[328021144,1716773559639,-1040.28,0.00032328,4]
[328021145,1716773559648,-565.33,0.00032328,4]
[328021146,1716773559658,-621.99,0.00032328,4]
[328021147,1716773559668,-248.11,0.00032328,4]
[328021148,1716773559678,-590.75,0.00032328,4]
[328021149,1716773559689,-641.85,0.00032328,4]
[328021150,1716773559698,-849.19,0.00032328,4]
[328021151,1716773559708,-889.12,0.00032328,4]
[328021152,1716773559719,-530.16,0.00032328,4]
[328021153,1716773559728,-536.89,0.00032328,4]
[328021154,1716773559738,-1259.29,0.00032328,4]
[328021155,1716773559748,-467.17040353,0.00032328,4]
[328021156,1716773559758,-500.0,0.00032328,4]
[328021157,1716773559768,-568.42,0.00032328,4]
[328021158,1716773559778,-776.42,0.00032328,4]
[328021159,1716773559788,-1677.95,0.00032328,4]
[328021160,1716773559798,-646.9,0.00032328,4]
[328021161,1716773559807,-660.3,0.00032328,4]
[328021162,1716773559817,-537.3,0.00032328,4]
[328021163,1716773559827,-500.0,0.00032328,4]
[328021164,1716773559837,-2614.52,0.00032328,4]
[328021165,1716773559847,-579.16,0.00032328,4]
[328021166,1716773559861,-1322.14,0.00032328,4]
[328021167,1716773559871,-969.5,0.00032328,4]
[328021168,1716773559881,-601.91930165,0.00032328,4]
[328021169,1716773559891,-609.69,0.00032328,4]
[328021170,1716773559903,-500.0,0.00032328,4]
[328021171,1716773559913,-506.32,0.00032328,4]
[328021172,1716773559923,-1140.34,0.00032328,4]
[328021173,1716773559933,-1339.71,0.00032328,4]
[328021174,1716773559943,-673.21,0.00032328,4]
[328021175,1716773559954,-859.67,0.00032328,4]
[328021176,1716773559964,-7686.08,0.00032328,4]
[328021177,1716773559973,-1172.21,0.00032328,4]
[328021178,1716773559982,-1287.8,0.00032328,4]
[328021179,1716773559992,-900.49,0.00032328,4]
[328021180,1716773560002,-1037.45,0.00032328,4]
[328021181,1716773560011,-507.12,0.00032328,4]
[328021182,1716773560021,-735.66,0.00032328,4]
[328021183,1716773560031,-2771.58,0.00032328,4]
[328021184,1716773560041,-3172.21,0.00032328,4]
[328021185,1716773560050,-1674.57,0.00032328,4]
[328021186,1716773560060,-500.0,0.00032328,4]
[328021187,1716773560076,-2746.18,0.00032328,4]
[328021188,1716773560087,-500.0,0.00032328,4]
[328021189,1716773560097,-527.2,0.00032328,4]
[328021190,1716773560107,-6205.95,0.00032328,4]
[328021191,1716773560117,-892.56,0.00032328,4]
[328021192,1716773560127,-706.36,0.00032328,4]
[328021193,1716773560136,-1206.85,0.00032328,4]
[328021194,1716773560147,-2601.64,0.00032328,4]
[328021195,1716773560157,-627.83,0.00032328,4]
[328021196,1716773560167,-500.0,0.00032328,4]
[328021197,1716773560177,-906.32,0.00032328,4]
[328021198,1716773560188,-1301.17,0.00032328,4]
[328021199,1716773560198,-1348.74,0.00032328,4]
[328021200,1716773560209,-1356.31,0.00032328,4]
[328021201,1716773560220,-690.34,0.00032328,4]
[328021202,1716773560230,-505.4,0.00032328,4]
[328021203,1716773560240,-1758.33863282,0.00032328,4]
[328021204,1716773560960,-500.0,0.00027397,4]
[328021205,1716773560970,-500.0,0.00027397,4]
[328021206,1716773560979,-500.0,0.00027397,4]
[328021207,1716773560988,-11767.84764259,0.00027397,4]
[328021208,1716773561233,-500.0,0.00013959,2]
[328021209,1716773561244,-1156.73114175,0.00013959,2]
[328021210,1716773561346,-392.04449334,0.00013959,2]
[328021212,1716773758977,289.4715628,0.00031,120]
[328021213,1716773785597,165.29875711,0.00025,120]
[328021224,1716774333897,231.45007742,0.00031,120]
[328021225,1716774344210,334.16650952,0.00031,120]
[328021226,1716774418701,21604.64036902,0.00031,120]
[328021227,1716774435335,-155.0,0.00010958,2]
[328021228,1716774435356,-86.14005527,0.00010958,2]
[328021234,1716774560117,-1442.10161029,0.00010958,2]
[328021235,1716774560136,-106.84046343,0.00010959,2]
[328021259,1716774633615,-67.42953657,0.00010959,2]
[328021260,1716774633625,-1065.13568175,0.00012899,2]
[328021261,1716774633635,-150.0,0.00012899,2]
[328021262,1716774633645,-150.0,0.00012899,2]
[328021263,1716774633654,-172.96267904,0.000129,2]
[328021264,1716774633663,-1794.87152918,0.000129,2]
[328021265,1716774633675,-1784.2093964,0.000129,2]
[328021266,1716774633686,-1850.72560984,0.000129,2]
[328021267,1716774633697,-597.34227907,0.000129,2]
[328021268,1716774633709,-2332.32978955,0.000129,2]
[328021269,1716774633720,-713.07366266,0.000129,2]
[328021270,1716774633731,-893.59727248,0.000129,2]
[328021271,1716774633884,-12324.85746982,0.000129,2]
[328021272,1716774633893,-178.55294367,0.000129,2]
[328021273,1716774633903,-165.54544513,0.000129,2]
[328021274,1716774633912,-19145.24749529,0.00012998,2]
[328021275,1716774633921,-197.66386049,0.00012998,2]
[328021288,1716774634230,-1125.98228768,0.00012999,2]
[328021289,1716774634240,-18813.45177893,0.00013,2]
[328021290,1716774634253,-19350.72595665,0.00013,2]
[328021291,1716774634264,-29571.13583185,0.00013,2]
[328021292,1716774634275,-35567.645937,0.00013,2]
[328021293,1716774634287,-33872.9088855,0.00013,2]
[328021294,1716774634298,-4010.82121495,0.00013,2]
[328021295,1716774634309,-251.61999996,0.00013,2]
[328021296,1716774634321,-809.73333754,0.00013,2]
[328021297,1716774634334,-2444.26708576,0.00013,2]
[328021298,1716774634347,-6044.72326032,0.00013,2]
[328021299,1716774634358,-4453.54152884,0.00013,2]
[328021300,1716774634370,-580.86539022,0.00013,2]
[328021301,1716774634381,-1157.61272561,0.00013,2]
[328021302,1716774634393,-672.3424,0.00013,2]
[328021304,1716774638051,-8602.67733,0.00013,2]
[328021311,1716774638064,-420.595,0.00013,2]
[328021319,1716774638250,-6328.75319065,0.00013,2]
[328021320,1716774638263,-1127.17289275,0.00013,2]
[328021321,1716774638274,-7098.9,0.00013,2]
[328021322,1716774638286,-293686.23121039,0.00013,2]
[328021323,1716774638298,-1862.423396,0.00013,2]
[328021324,1716774638310,-38730.32888125,0.00013,2]
[328021325,1716774638320,-3688.515,0.00013,2]
[328021326,1716774638332,-5270.22444957,0.00013,2]
[328021327,1716774638450,-5697.51723937,0.00013,2]
[328021328,1716774638462,-841.415,0.00013,2]
[328021329,1716774638474,-1467.73390285,0.00013,2]
[328021330,1716774638485,-248144.67496443,0.00013,2]
[328021331,1716774638497,-69319.34524395,0.00013,2]
[328021332,1716774638508,-438.29,0.00013,2]
[328021334,1716774641960,-187755.63108666,0.00013,2]
[328021335,1716774641970,-302921.55065066,0.00013,2]
[328021336,1716774641979,-155.0,0.00013957,2]
[328021337,1716774641989,-406.54724028,0.00013958,2]
[328021338,1716774641999,-48.44113507,0.00013959,2]
[328021339,1716774642009,-155.13155293,0.00013959,2]
[328021340,1716774642019,-4377.18,0.00013959,2]
[328021341,1716774642028,-833.12,0.00013959,2]
[328021342,1716774642037,-499.99,0.00013959,2]
[328021343,1716774642047,-153.5,0.00013973,2]
[328021344,1716774642056,-231.1,0.00013973,2]
[328021345,1716774642065,-22291.00700898,0.00014945,2]
[328021346,1716774642075,-974.4873849,0.00015,2]
[328021347,1716774642084,-22291.00700898,0.00016991,2]
[328021348,1716774642095,-2687.67917694,0.00017225,2]
[328021349,1716774642104,-193.53,0.000176,2]
[328021350,1716774642157,-3406.15,0.00018956,2]
[328021351,1716774642166,-22291.00700898,0.00019036,2]
[328021352,1716774642176,-150.0,0.000191,2]
[328021353,1716774642186,-1710.36,0.00019115,2]
[328021354,1716774642197,-157.55,0.00019396,2]
[328021355,1716774642206,-1042.99,0.00019433,2]
[328021356,1716774642215,-3884.49365683,0.00019451,2]
[328021357,1716774642226,-250.0,0.00019648,2]
[328021358,1716774642235,-157.55,0.00019733,2]
[328021359,1716774642244,-176.8,0.00019842,2]
[328021360,1716774642254,-193.53,0.00019864,2]
[328021361,1716774642263,-5190.83936008,0.0002,2]
[328021362,1716774642275,-258.17637967,0.0002,2]
[328021363,1716774642285,-549.52370474,0.0002,2]
[328021364,1716774642294,-200.0,0.0002,2]
[328021365,1716774642303,-6245.03715167,0.0002,2]
[328021366,1716774642312,-164.13456523,0.0002,2]
[328021367,1716774642321,-157.55,0.00020069,2]
[328021368,1716774642331,-350.0,0.00020196,2]
[328021369,1716774642343,-157.55,0.00020406,2]
[328021370,1716774642352,-231.1,0.00020447,2]
[328021371,1716774642362,-450.0,0.00020744,2]
[328021372,1716774642372,-22291.00700898,0.00021082,2]
[328021373,1716774642381,-250.0,0.00021242,2]
[328021374,1716774642390,-550.0,0.00021292,2]
[328021375,1716774642400,-3136.12,0.00021358,2]
[328021376,1716774642410,-2489.58,0.0002137,2]
[328021377,1716774642419,-187.11,0.00021373,2]
[328021378,1716774642428,-250.0,0.00021433,2]
[328021379,1716774642437,-19942.37,0.00021455,2]
[328021380,1716774642447,-201.06,0.00021673,2]
[328021381,1716774642457,-169.17,0.00021713,2]
[328021382,1716774642466,-4885.36427819,0.00021731,2]
[328021383,1716774642476,-1004.22177931,0.00021771,2]
[328021384,1716774642487,-650.0,0.0002184,2]
[328021385,1716774642496,-1710.36,0.00021855,2]
[328021386,1716774642505,-502.0,0.000219,2]
[328021387,1716774642515,-511.29,0.00021918,2]
[328021388,1716774642524,-2000.0,0.00021918,2]
[328021389,1716774642533,-164.42,0.00021918,2]
[328021391,1716774642543,-250.0,0.00021918,2]
[328021392,1716774642552,-193.53,0.00022128,2]
[328021394,1716774642561,-6837.82231519,0.00022173,2]
[328021396,1716774642570,-153.5,0.00022174,2]
[328021398,1716774642579,-600.75682904,0.00022388,2]
[328021400,1716774642591,-288.04,0.00022439,2]
[328021402,1716774642600,-168.75,0.00022488,2]
[328021404,1716774642610,-22291.00700898,0.00023127,2]
[328021406,1716774642619,-982.434,0.00023408,2]
[328021408,1716774642628,-156.688,0.00023408,2]
[328021410,1716774642638,-813.619,0.00023408,2]
[328021412,1716774642648,-445.0,0.00023408,2]
[328021414,1716774642658,-2403.885,0.00023408,2]
[328021416,1716774642668,-165.066,0.00023408,2]
[328021418,1716774642677,-154.23,0.00023408,2]
[328021420,1716774642687,-219.0,0.00023408,2]
[328021422,1716774642696,-1656.322,0.00023408,2]
[328021424,1716774642706,-1137.0,0.00023408,2]
[328021426,1716774642715,-1137.0,0.00023408,2]
[328021428,1716774642724,-3172.408,0.00023408,2]
[328021430,1716774642734,-3172.408,0.00023408,2]
[328021432,1716774642743,-291.549,0.00023408,2]
[328021434,1716774642752,-1478.475,0.00023408,2]
[328021436,1716774642762,-5184.242,0.00023408,2]
[328021438,1716774642771,-5810.105,0.00023408,2]
[328021440,1716774642781,-1064.649,0.00023408,2]
[328021442,1716774642790,-178.55294365,0.0002415,2]
[328021444,1716774642800,-180.0,0.0002423,2]
[328021446,1716774642809,-193.53,0.00024392,2]
[328021448,1716774642818,-329.39201247,0.0002459,14]
[328021450,1716774642827,-1710.36,0.00024595,2]
[328021452,1716774642836,-502.83719313,0.000247,2]
[328021454,1716774642847,-514.43028828,0.00024889,2]
[328021458,1716774642856,-514.43028827,0.00024889,2]
[328021462,1716774642866,-514.43028827,0.00024889,2]
[328021466,1716774642876,-514.43028827,0.00024889,2]
[328021470,1716774642885,-514.43028827,0.00024889,2]
[328021474,1716774642894,-332.96300014,0.00024898,2]
[328021478,1716774642903,-332.9630001,0.00024898,2]
[328021481,1716774642913,-332.9630001,0.00024898,2]
[328021484,1716774642922,-332.9630001,0.00024898,2]
[328021487,1716774642931,-332.9630001,0.00024898,2]
[328021490,1716774642940,-187.11,0.00024935,2]
[328021492,1716774642949,-22291.00700898,0.00025173,2]
[328021494,1716774642958,-288.04,0.00025244,2]
[328021496,1716774642968,-332.9630001,0.000254,2]
[328021498,1716774642977,-514.43028827,0.000254,2]
[328021500,1716774642987,-975.0,0.00026408,2]
[328021502,1716774642996,-150.0,0.00026408,2]
[328021504,1716774643005,-809.0,0.00026408,2]
[328021506,1716774643015,-2398.0,0.00026408,2]
[328021508,1716774643024,-445.0,0.00026408,2]
[328021510,1716774643033,-164.0,0.00026408,2]
[328021512,1716774643042,-150.0,0.00026408,2]
[328021514,1716774643051,-216.0,0.00026408,2]
[328021516,1716774643062,-1650.0,0.00026408,2]
[328021518,1716774643071,-289.0,0.00026408,2]
[328021520,1716774643080,-1467.0,0.00026408,2]
[328021522,1716774643091,-5139.0,0.00026408,2]
[328021524,1716774643100,-5765.0,0.00026408,2]
[328021526,1716774643109,-1062.0,0.00026408,2]
[328021528,1716774643119,-193.53,0.00026656,2]
[328021530,1716774643128,-231.1,0.00026921,2]
[328021532,1716774643137,-1042.99,0.00027207,2]
[328021534,1716774643147,-22291.00700898,0.00027218,2]
[328021536,1716774643155,-208.16592772,0.00027281,7]
[328021538,1716774643164,-426.5258,0.00027296,2]
[328021540,1716774643174,-808.3344351,0.0002739,2]
[328021542,1716774643184,-201.15421481,0.00027397,4]
[328021544,1716774643196,-502.27079958,0.00027397,4]
[328021546,1716774643205,-500.0,0.00027397,2]
[328021548,1716774643215,-500.0,0.00027397,2]
[328021549,1716774643225,-500.78842882,0.00027397,2]
[328021551,1716774643234,-500.0,0.00027397,4]
[328021553,1716774643243,-1000.0,0.00027397,2]
[328021555,1716774643254,-506.07919081,0.00027397,4]
[328021557,1716774643265,-500.0,0.00027397,4]
[328021560,1716774643274,-509.39130957,0.00027397,4]
[328021562,1716774643284,-512.03291504,0.00027397,4]
[328021563,1716774643293,-500.0,0.00027397,4]
[328021565,1716774643302,-500.0,0.00027397,4]
[328021567,1716774643311,-500.0,0.00027397,4]
[328021569,1716774643320,-276.33329138,0.00027397,4]
[328021571,1716774643330,-500.0,0.00027397,4]
[328021573,1716774643341,-500.0,0.00027397,2]
[328021575,1716774643350,-500.0,0.00027397,2]
[328021577,1716774643360,-500.0,0.00027397,2]
[328021580,1716774643369,-500.0,0.00027397,4]
[328021581,1716774643378,-516.79179885,0.00027397,4]
[328021583,1716774643387,-500.0,0.00027397,4]
[328021585,1716774643396,-500.0,0.00027397,4]
[328021587,1716774643405,-500.0,0.00027397,4]
[328021589,1716774643415,-500.0,0.00027397,4]
[328021591,1716774643424,-500.0,0.00027397,4]
[328021594,1716774643433,-523.8765042,0.00027397,4]
[328021595,1716774643442,-513.30445956,0.00027397,4]
[328021597,1716774643451,-524.92730213,0.00027397,4]
[328021599,1716774643461,-500.0,0.00027397,4]
[328021602,1716774643470,-500.0,0.00027397,4]
[328021603,1716774643479,-500.0,0.00027397,4]
[328021606,1716774643488,-500.0,0.00027397,2]
[328021608,1716774643500,-500.0,0.00027397,4]
[328021609,1716774643511,-500.0,0.00027397,4]
[328021612,1716774643520,-500.0,0.00027397,4]
[328021613,1716774643530,-500.0,0.00027397,4]
[328021616,1716774643539,-500.0,0.00027397,4]
[328021617,1716774643548,-358.92652375,0.00027397,4]
[328021619,1716774643557,-516.10665429,0.00027397,4]
[328021622,1716774643567,-595.98509927,0.00027397,4]
[328021623,1716774643576,-500.0,0.00027397,4]
[328021625,1716774643585,-369.13969891,0.00027397,4]
[328021628,1716774643598,-518.32327508,0.00027397,4]
[328021630,1716774643606,-500.0,0.00027397,4]
[328021632,1716774643615,-500.0,0.00027397,4]
[328021633,1716774643624,-500.0,0.00027397,4]
[328021635,1716774643633,-500.0,0.00027397,2]
[328021637,1716774643642,-507.69957499,0.00027397,4]
[328021639,1716774643653,-637.83326824,0.00027397,4]
[328021640,1716774643662,-531.81013644,0.00027397,4]
[328021641,1716774643671,-500.0,0.00027397,4]
[328021642,1716774643680,-500.0,0.00027397,4]
[328021643,1716774643689,-500.0,0.00027397,4]
[328021644,1716774643699,-514.57314795,0.00027397,4]
[328021645,1716774643708,-500.0,0.00027397,4]
[328021646,1716774643716,-500.0,0.00027397,4]
[328021647,1716774643726,-500.0,0.00027397,4]
[328021648,1716774643735,-500.0,0.00027397,4]
[328021650,1716774643744,-500.0,0.00027397,4]
[328021652,1716774643753,-548.99,0.00027397,4]
[328021654,1716774643762,-525.34641872,0.00027397,4]
[328021656,1716774643771,-500.0,0.00027397,4]
[328021658,1716774643780,-500.0,0.00027397,4]
[328021660,1716774643790,-500.0,0.00027397,4]
[328021662,1716774643799,-623.54,0.00027397,4]
[328021664,1716774643808,-500.0,0.00027397,4]
[328021666,1716774643817,-500.0,0.00027397,4]
[328021668,1716774643826,-500.0,0.00027397,4]
[328021670,1716774643835,-500.0,0.00027397,4]
[328021671,1716774643846,-526.58721807,0.00027397,4]
[328021674,1716774643855,-500.0,0.00027397,4]
[328021675,1716774643864,-500.0,0.00027397,4]
[328021678,1716774643874,-500.0,0.00027397,4]
[328021680,1716774643883,-500.0,0.00027397,4]
[328021683,1716774643892,-500.0,0.00027397,4]
[328021686,1716774643901,-500.0,0.00027397,4]
[328021689,1716774643911,-500.0,0.00027397,4]
[328021692,1716774643920,-500.0,0.00027397,4]
[328021694,1716774643929,-500.0,0.00027397,4]
[328021696,1716774643938,-512.81489674,0.00027397,4]
[328021698,1716774643947,-500.0,0.00027397,4]
[328021700,1716774643956,-500.0,0.00027397,4]
[328021701,1716774643965,-500.0,0.00027397,4]
[328021703,1716774643975,-500.0,0.00027397,4]
[328021705,1716774643984,-500.0,0.00027397,4]
[328021708,1716774643993,-500.0,0.00027397,4]
[328021709,1716774644002,-500.0,0.00027397,4]
[328021711,1716774644012,-500.0,0.00027397,4]
[328021713,1716774644022,-500.0,0.00027397,4]
[328021716,1716774644031,-500.0,0.00027397,4]
[328021717,1716774644040,-500.0,0.00027397,4]
[328021719,1716774644050,-500.0,0.00027397,4]
[328021721,1716774644059,-500.0,0.00027397,4]
[328021723,1716774644068,-500.0,0.00027397,4]
[328021725,1716774644078,-500.0,0.00027397,4]
[328021727,1716774644087,-500.0,0.00027397,4]
[328021729,1716774644097,-500.0,0.00027397,4]
[328021731,1716774644107,-500.0,0.00027397,4]
[328021733,1716774644116,-500.0,0.00027397,4]
[328021735,1716774644125,-20000.0,0.00027397,2]
[328021737,1716774644134,-500.0,0.00027397,4]
[328021739,1716774644143,-500.0,0.00027397,4]
[328021741,1716774644153,-214.87005013,0.00027397,4]
[328021743,1716774644162,-500.0,0.00027397,4]
[328021745,1716774644172,-500.0,0.00027397,4]
[328021747,1716774644185,-499.72769129,0.00027397,4]
[328021749,1716774644195,-500.0,0.00027397,4]
[328021751,1716774644205,-500.0,0.00027397,4]
[328021753,1716774644216,-605.20294105,0.00027397,4]
[328021755,1716774644227,-509.95478128,0.00027397,4]
[328021757,1716774644236,-500.0,0.00027397,4]
[328021759,1716774644246,-500.0,0.00027397,4]
[328021761,1716774644256,-500.0,0.00027397,4]
[328021763,1716774644264,-500.0,0.00027397,4]
[328021765,1716774644275,-539.00886142,0.00027397,4]
[328021767,1716774644284,-500.0,0.00027397,4]
[328021769,1716774644293,-500.0,0.00027397,4]
[328021771,1716774644303,-500.0,0.00027397,4]
[328021773,1716774644311,-500.0,0.00027397,4]
[328021775,1716774644321,-500.0,0.00027397,4]
[328021777,1716774644330,-502.7056405,0.00027397,4]
[328021779,1716774644340,-520.77880117,0.00027397,4]
[328021781,1716774644351,-188.94923665,0.00027397,4]
[328021783,1716774644360,-500.0,0.00027397,4]
[328021785,1716774644369,-500.0,0.00027397,4]
[328021787,1716774644378,-500.0,0.00027397,4]
[328021789,1716774644388,-500.0,0.00027397,4]
[328021791,1716774644397,-500.0,0.00027397,4]
[328021793,1716774644407,-500.0,0.00027397,4]
[328021795,1716774644416,-500.0,0.00027397,4]
[328021797,1716774644426,-500.0,0.00027397,4]
[328021799,1716774644434,-500.0,0.00027397,4]
[328021801,1716774644444,-500.0,0.00027397,4]
[328021803,1716774644454,-500.0,0.00027397,4]
[328021805,1716774644463,-500.0,0.00027397,4]
[328021807,1716774644472,-500.0,0.00027397,4]
[328021809,1716774644482,-550.90303002,0.00027397,4]
[328021811,1716774644491,-500.0,0.00027397,4]
[328021813,1716774644500,-500.0,0.00027397,4]
[328021815,1716774644510,-500.0,0.00027397,4]
[328021817,1716774644519,-500.0,0.00027397,4]
[328021819,1716774644529,-500.0,0.00027397,4]
[328021821,1716774644539,-509.33593285,0.00027397,4]
[328021823,1716774644548,-500.0,0.00027397,4]
[328021825,1716774644557,-500.0,0.00027397,4]
[328021827,1716774644567,-525.71401846,0.00027397,4]
[328021829,1716774644576,-500.0,0.00027397,4]
[328021831,1716774644585,-444.08923575,0.00027397,4]